Cogmind - Beta 16.1 @@@ ROGUE MODE // 2026.04.09 @ 18:31:00 Player: star Result: Destroyed by VU-NHV(R) with Subdweller Beam Cannon Performance ------------- Evolutions (0) 0 Regions Visited (3) 600 Robots Destroyed (15) 75 Value Destroyed (294) 294 Prototype IDs (1) 20 Alien Tech Used (0) 0 Bonus (0) 0 TOTAL SCORE: 989 Bonus ------- None Cogmind --------- Core Integrity 0/250 Matter 250/300 Energy 250/250 System Corruption 0% Temperature Cool (9) Movement Rolling (120) Ox1 Location -10/Subcaves Parts ------- > --- POWER (1) -------- Ion Engine > --- PROPULSION (2) --- Subdweller Monowheel > --- UTILITY (2) ------ Large Storage Unit > --- WEAPON (2) ------- Subdweller Shrapnel Launcher > --- INVENTORY (15) --- Subdweller Power Source Nuclear Core Subdweller Monowheel Subdweller Monowheel Cryofiber Web High-capacity Matter Pod (200) Target Analyzer Improved Weapon Shielding Reactive Plating Decoy Drone Bay (9/16) Medium Laser Small Laser Dirty Datajack (18) Peak State ------------ > --- POWER ------------ Ion Engine > --- PROPULSION ------- Wheel Compact Wheel > --- UTILITY ---------- Decoy Drone Bay > --- WEAPON ----------- EM Pulse Gun Medium Laser > --- INVENTORY -------- Nuclear Core VSS Leg Cryofiber Web [Rating: 19] Favorites ----------- Power Ion Engine Engine Ion Engine Propulsion Subdweller Monowheel Leg VSS Leg Wheel Subdweller Monowheel Utility Large Storage Unit Device Decoy Drone Bay Storage Large Storage Unit Protection Reactive Plating Weapon EM Pulse Gun Energy Gun EM Pulse Gun Ballistic Cannon Slug Cannon Launcher Subdweller Shrapnel Launcher Special Melee Weapon Dirty Datajack Build | -11 -10 -10 -10 ------- Run | Yrd Mat Min Sub Slots Evolved . | . . . . Power . | . . . . Propulsion . | . . . . Utility . | . . . . Weapon . | . . . . Parts Attached 18 | 6 1 1 10 Power 2 | 1 . . 1 Engine 2 | 1 . . 1 Core . | . . . . Reactor . | . . . . Propulsion 6 | 2 . . 4 Treads . | . . . . Leg 1 | . . . 1 Wheel 5 | 2 . . 3 Hover . | . . . . Flight . | . . . . Utility 4 | 1 1 1 1 Device 1 | . . . 1 Storage 2 | 1 1 . . Processor . | . . . . Hackware . | . . . . Protection 1 | . . 1 . Artifact . | . . . . Weapon 6 | 2 . . 4 Energy Gun 3 | 2 . . 1 Energy Cannon . | . . . . Ballistic Gun . | . . . . Ballistic Cannon 1 | . . . 1 Launcher 1 | . . . 1 Special Weapon . | . . . . Impact Weapon . | . . . . Slashing Weapon . | . . . . Piercing Weapon . | . . . . Special Melee Weapon 1 | . . . 1 Unidentified Prototypes 1 | . . . 1 Parts Lost 7 | . . . 7 Power 1 | . . . 1 Propulsion 3 | . . . 3 Utility . | . . . . Weapon 3 | . . . 3 Highest Loss Streak 3 | . . . 3 To Critical Strikes 1 | . . . 1 Average Backups 10 | . 2 8 12 Power 1 | . 1 1 1 Propulsion 1 | . . . 1 Utility 5 | . . 4 6 Weapon 1 | . 1 1 2 Tool/Special . | . . . . Unused Backups 9 | . . . 9 Power 2 | . . . 2 Propulsion 2 | . . . 2 Utility 4 | . . . 4 Weapon 1 | . . . 1 Tool/Special . | . . . . Average Slot Usage (%) 79 | . 85 99 72 Engine 13 | . 14 14 12 Leg 6 | . . . 9 Wheel 20 | . 28 28 16 Storage 13 | . 14 14 13 Protection 3 | . . 13 . Energy Gun 15 | . 28 28 10 Ballistic Cannon 6 | . . . 8 Peak Build Rating 19 | 6 7 12 19 Average Rating 12 | 4 6 10 13 On Entrance 6 | . 6 6 12 Avg Prop Armor Cover (%) 6 | . . . 6 Naked Turns . | . . . . Heaviest Build 39 | 14 29 39 35 Greatest Support 36 | 26 26 26 36 Greatest Overweight (x) 2 | 1 1 1 2 Average Overweight (x) 1 | . . 1 1 Largest Inventory Capacity 15 | 8 15 15 15 Average Capacity 14 | 7 8 15 14 Most Carried 15 | 2 4 11 15 Average Carried 11 | 1 2 8 13 Final Capacity 15 | 8 15 15 15 Final Carried 14 | 2 4 11 14 Class Distribution -------------------- 100% | Mutant Dominant Class ---------------- Mutant | -10/Materials Mutant | -10/Mines Mutant | -10/Subcaves Resources | -11 -10 -10 -10 ----------- Run | Yrd Mat Min Sub Matter Collected 963 | 202 50 228 483 Remotely . | . . . . Salvage Created 344 | . 50 112 182 Parts 29 | . 5 10 14 Haulers Intercepted . | . . . . Recyclers Shooed . | . . . . Parts Field Recycled . | . . . . Retrieved Matter . | . . . . Parts Self-Destructed 19 | . . . 19 Prevented 1 | . . . 1 Parts Restored . | . . . . Kills | -11 -10 -10 -10 ------- Run | Yrd Mat Min Sub Combat Hostiles Destroyed 11 | . 3 1 7 Melee 1 | . . . 1 Guns 6 | . 3 1 2 Cannons 4 | . . . 4 Classes Destroyed 5 | . 1 3 1 Worker 3 | . . 3 . Tunneler 1 | . . 1 . Swarmer 5 | . 3 . 2 Grunt 1 | . . 1 . Subdweller 5 | . . . 5 Best Kill Streak 3 | . 3 3 2 Combat Bots Only 3 | . 3 1 2 Max Kills in Single Turn 1 | . 1 1 1 Gunslinging . | . . . . Exploded . | . . . . Melee 1 | . . . 1 Uniques/NPCs Destroyed . | . . . . Combat | -11 -10 -10 -10 -------- Run | Yrd Mat Min Sub Hostile Shots Fired 75 | . 10 4 61 Missed 23 | . 3 . 20 Hits 52 | . 7 4 41 Projectile 52 | . 7 4 41 AOE 3 | . . 1 2 Critical Strikes 1 | . . . 1 Damage Taken 859 | . 58 49 752 Core 269 | . 17 15 237 Absorbed by Shields . | . . . . Core Remaining (%) 100 | 100 . . . Volleys Fired 77 | . 4 9 64 Largest 2 | . 2 2 2 Hottest 90 | . 90 90 90 Shots Fired 113 | . 8 18 87 Gun 49 | . 8 18 23 Cannon 63 | . . . 63 Launcher 1 | . . . 1 Special . | . . . . Kinetic 64 | . . . 64 Thermal 13 | . 4 9 . Explosive . | . . . . Electromagnetic 36 | . 4 9 23 Robot Hit Streak 12 | . 5 12 8 Robot Miss Streak 4 | . . 2 4 Penetration Max . | . . . . Secondary Targets . | . . . . Shots Hit Robots 57 | . 5 13 39 Core Hits 21 | . 3 6 12 Critical Kills . | . . . . Critical Parts Destroyed 1 | . . . 1 Critical Strikes 6 | . . . 6 Destroy 6 | . . . 6 Melee Attacks 2 | . . . 2 Impact . | . . . . Slashing . | . . . . Piercing 2 | . . . 2 Sneak Attacks . | . . . . Combat Hostiles . | . . . . Follow-up Attacks . | . . . . Damage Inflicted 1109 | . 58 188 863 Guns 541 | . 58 188 295 Cannons 507 | . . . 507 Explosions 58 | . . . 58 Melee 3 | . . . 3 Ramming . | . . . . Kinetic 565 | . . . 565 Thermal 89 | . 12 77 . Explosive . | . . . . Electromagnetic 452 | . 46 111 295 Impact . | . . . . Slashing . | . . . . Piercing 3 | . . . 3 Highest Corruption . | . . . . Average Corruption . | . . . . Corruption Purged . | . . . . Corruption Blocked . | . . . . Overload Shots . | . . . . Overflow Damage 12 | . . . 12 Projectiles . | . . . . Explosions 12 | . . . 12 Melee . | . . . . Knockbacks 5 | . . . 5 Impact . | . . . . Kinetic 5 | . . . 5 Secondary . | . . . . Self-Inflicted Damage 31 | . . . 31 Shots 1 | . . . 1 Rammed . | . . . . Targets Rammed . | . . . . Kicked . | . . . . Crushed . | . . . . Highest Temperature 180 | . 120 180 . Average Temperature 73 | . 63 77 . Received Heat Transfer 162 | . 12 24 126 Siege Activations . | . . . . Martial Activations . | . . . . Shielding Activations . | . . . . Robots Disrupted . | . . . . Combat Hostiles . | . . . . Robots Corrupted . | . . . . Combat Hostiles . | . . . . Parts Fried . | . . . . Impact Corruptions . | . . . . Robots Melted . | . . . . Combat Hostiles . | . . . . Parts Melted 1 | . . 1 . Heat Transferred 259 | . 37 222 . Parts Sabotaged . | . . . . Parts Stolen . | . . . . Parts Stripped . | . . . . Power Chain Reactions . | . . . . Alert | -11 -10 -10 -10 ------- Run | Yrd Mat Min Sub Maximum Alert Level . | . . . . Low Security (%) 100 | 100 100 100 . Level 1 . | . . . . Level 2 . | . . . . Level 3 . | . . . . Level 4 . | . . . . Level 5 . | . . . . High Security . | . . . . Max Security . | . . . . Peak Influence 76 | . 76 30 . Initial 6 | . . 6 . Average 10 | . 43 2 . Influence Increases 241 | . 86 55 100 Destroy 0b10 Robot/C 120 | . 60 20 40 Destroy 0b10 Robot/NC 20 | . . 20 . Destroy Leader 10 | . 10 . . Destroy Structure 1 | . 1 . . Lose Combat Pursuer 90 | . 15 15 60 Influence Decreases 236 | . 70 71 95 Entered New Map 10 | . . 10 . Time Decay 216 | . 70 61 85 Lost Part 10 | . . . 10 Squads Dispatched 2 | . 1 1 . Investigation 2 | . 1 1 . Extermination . | . . . . Reinforcement . | . . . . Assault . | . . . . Garrison . | . . . . Intercept . | . . . . Searches Triggered . | . . . . Construction Impeded . | . . . . Haulers Reinforced . | . . . . Active Scanning Responses . | . . . . Cargo Convoy Interrupts . | . . . . Stealth | -11 -10 -10 -10 --------- Run | Yrd Mat Min Sub Distress Signals 2 | . 1 1 . Communications Jammed . | . . . . Distress Signals . | . . . . Times Spotted 20 | . 7 2 11 Peak Tracking Total 4 | . 4 2 4 Tactical Retreats 4 | . 1 1 2 Traps | -11 -10 -10 -10 ------- Run | Yrd Mat Min Sub Traps Triggered 1 | . 1 . . Indirectly . | . . . . Trap Hack Attempts . | . . . . Triggered . | . . . . Disarmed . | . . . . Reprogrammed . | . . . . Reused . | . . . . Traps Extracted . | . . . . Installed . | . . . . Triggered . | . . . . Machines | -11 -10 -10 -10 ---------- Run | Yrd Mat Min Sub Machines Disabled . | . . . . Max in Single Turn . | . . . . Machines Repaired . | . . . . Machines Dismantled . | . . . . Machines Sabotaged . | . . . . Overloaded Fab Kills . | . . . . Hacking | -11 -10 -10 -10 --------- Run | Yrd Mat Min Sub Machines Accessed 5 | . . 2 3 Terminals . | . . . . Fabricators . | . . . . Repair Stations . | . . . . Recycling Units . | . . . . Scanalyzers . | . . . . Garrison Access . | . . . . Total Hacks 8 | . . 2 6 Successful 8 | . . 2 6 Failed . | . . . . Catastrophic . | . . . . Database Lockouts . | . . . . Manual . | . . . . Terminals . | . . . . Fabricators . | . . . . Repair Stations . | . . . . Recycling Units . | . . . . Scanalyzers . | . . . . Garrison Access . | . . . . Terminal Hacks 8 | . . 2 6 Record 4 | . . . 4 Open Door 3 | . . 2 1 Release Object 1 | . . . 1 Fabricator Hacks . | . . . . Repair Station Hacks . | . . . . Recycling Unit Hacks . | . . . . Scanalyzer . | . . . . Garrison Access Hacks . | . . . . Unauthorized Hacks . | . . . . Terminals . | . . . . Fabricators . | . . . . Repair Stations . | . . . . Recycling Units . | . . . . Scanalyzers . | . . . . Garrison Access . | . . . . Data Cores Recovered . | . . . . Used . | . . . . Hacking Detections . | . . . . Full Trace Events . | . . . . Feedback Events . | . . . . Feedback Blocked . | . . . . Robot Schematics Acquired . | . . . . Robots Built . | . . . . Authchips . | . . . . Time . | . . . . Total Robot Build Rating . | . . . . Part Schematics Acquired . | . . . . Parts Built . | . . . . Authchips . | . . . . Time . | . . . . Total Part Build Rating . | . . . . Part Studies Acquired . | . . . . Parts Repaired . | . . . . Time . | . . . . Parts Recycled . | . . . . Recycled Matter . | . . . . Retrieved Matter . | . . . . Retrieved Components . | . . . . Parts Scanalyzed . | . . . . Part Schematics Acquired . | . . . . Parts Damaged . | . . . . Bothacking | -11 -10 -10 -10 ------------ Run | Yrd Mat Min Sub Used RIF Installer . | . . . . Robots Hacked . | . . . . Non-combat . | . . . . Combat . | . . . . Robot Hacks Applied . | . . . . Relay Couplers Released . | . . . . Fabnet Peak Effective % . | . . . . Robots Rewired . | . . . . Allies Hacked . | . . . . Hacks Repelled . | . . . . Allies | -11 -10 -10 -10 -------- Run | Yrd Mat Min Sub Total Allies . | . . . . Largest Group . | . . . . Highest-Rated Group . | . . . . Highest-Rated Ally . | . . . . Total Orders 1 | . . . 1 EXPLORE 1 | . . . 1 Ally Attacks . | . . . . Total Damage . | . . . . Kills . | . . . . Allies Corrupted . | . . . . Allies Melted . | . . . . Intel | -11 -10 -10 -10 ------- Run | Yrd Mat Min Sub Active Infowar (turns) . | . . . . Robot Analysis Total . | . . . . Derelict Logs Recovered 3 | . . 1 2 Drone Launches 7 | . . . 7 Drone Recoveries . | . . . . Exploration | -11 -10 -10 -10 ------------- Run | Yrd Mat Min Sub Turns Passed 2632 | 49 152 609 1822 Spaces Moved 1249 | 46 146 253 804 Core 9 | 9 . . . Treads . | . . . . Legs 359 | . . . 359 Wheels 881 | 37 146 253 445 Hover . | . . . . Flight . | . . . . Fastest Speed 50 | 50 90 105 90 Average Speed 152 | 83 91 105 182 Slowest Speed 270 | 100 105 105 270 Overloaded Moves . | . . . . Propulsion Burnouts . | . . . . Robots Hopped . | . . . . Potential Cave-ins . | . . . . Cave-ins Triggered . | . . . . Exploration Rate (%) 33 | 3 35 52 44 Regions Visited 3 Branch Regions 2 Pre-discovered Areas 1 | . . 1 . Known Exits Taken . | . . . . Unknown Exits Taken 3 | 1 1 1 . Scrap Searched 7 | . . 1 6 Spaces Dug 1 | . . . 1 Terrain Destroyed 40 | . . . 40 Melee . | . . . . Projectile 20 | . . . 20 AOE 20 | . . . 20 Terrain Rammed . | . . . . Walls Destroyed . | . . . . Machines Disabled . | . . . . Actions | -11 -10 -10 -10 --------- Run | Yrd Mat Min Sub Total 1856 | 53 156 577 1070 Wait 480 | . 4 309 167 Move 1246 | 45 145 252 804 Hop . | . . . . Pick Up 23 | 2 1 6 14 Fast Attach 10 | 6 1 1 2 Attach 6 | . . . 6 Detach 3 | . 1 . 2 Swap 4 | . . . 4 Drop 5 | . . . 5 Fire 77 | . 4 9 64 Melee 2 | . . . 2 Ram . | . . . . Kick . | . . . . Crush . | . . . . Escape Stasis . | . . . . Rewire . | . . . . Trap . | . . . . Miscellaneous . | . . . . Route ------- -11/Scrapyard -10/Materials -10/Mines (discovered 3 exits: [*Mat x2] / *Sub) -10/Subcaves (discovered 3 exits: *Mat x2 / [*Rec]) History --------- Turn | Location | Event 29 | -11/Scrapyard | Discovered new exit (range 14) 50 | -11/Scrapyard | Entered Materials 161 | -10/Materials | Discovered new exit (range 8) 202 | -10/Materials | Entered Mines 204 | -10/Mines | Learned location of Recycling (-7) 206 | -10/Mines | Met a Derelict shopkeep closing up shop 272 | -10/Mines | Discovered new exit (range 13) 281 | -10/Mines | Met a Derelict bent on vengeance 313 | -10/Mines | Build established: Mutant 355 | -10/Mines | Discovered new exit (range 16) 400 | -10/Mines | Assembled infested the area 405 | -10/Mines | Assisted by a Guerilla fighting off Assembled 721 | -10/Mines | Found the Drone Emporium 728 | -10/Mines | Found Prototype Device 793 | -10/Mines | Discovered new exit (range 5) 811 | -10/Mines | Entered Subcaves 812 | -10/Subcaves | Approached by a straggling Scientist 813 | -10/Subcaves | Identified Decoy Drone Bay 834 | -10/Subcaves | Discovered new exit (range 67) 834 | -10/Subcaves | Discovered new exit (range 63) 885 | -10/Subcaves | Shifting Twisted Machinery released Slug Cannon 981 | -10/Subcaves | Learned Materials trap positions 983 | -10/Subcaves | Learned 2 Materials zone layouts 1019 | -10/Subcaves | Visited Clippyterm 1022 | -10/Subcaves | Identified exit to Materials 1196 | -10/Subcaves | Lost 3 parts (2n1w) 1476 | -10/Subcaves | Shifting Twisted Machinery released Shrapnel Trap 1570 | -10/Subcaves | Core integrity fell below 50% 2543 | -10/Subcaves | Core integrity fell below 20% 2633 | -10/Subcaves | Destroyed by VU-NHV(R) with Subdweller Beam Cannon Last Messages --------------- 02053_ Splicing H6-49U(R)... 02053_ H6-49U(R) system unaffected. 02053_ Splicing H6-49U(R)... 02053_ H6-49U(R) system unaffected. 02053_ H6-49U(R) destroyed. 02054_ Acquired 17 matter. 02059_ Acquired 7 matter. 02068_ Acquired 3 matter. 02084_ Acquired Sub. Shrapnel Launcher. 02087_ Subatomizers dissect the Sub. Power Source. 02112_ Acquired Sub. Power Source. 02140_ Acquired Sub. Monowheel. 02328_ Dropped Broken Sub. Monowheel. 02338_ Subatomizers dissect the Disposable Heat Sink. 02342_ Acquired Sub. Monowheel. 02352_ Subatomizers dissect the Disposable Heat Sink. 02422_ VC-48X(u) builds Twisted Machinery. 02466_ VC-48X(u) tweaks Twisted Machinery. 02632_ VSS Leg destroyed. 02632_ Destroyed VSS Leg. Map ----- +----------------------------------------------------+ | ???????????????????## #### #????? | | ???????????????????#! # ##""" #?????? | | ???????????????????# " "" #???????? | | ???????????????????## # # #???????? | | ?????????????????### ######## #???????? | | ????????????????## # #####???# #???????? | | ????????????????# #????##???????? | | ????????????????## #?????????????? | | ?????????????????# ##?????????????? | | ????????????????## ##??????????????? | | ???????????????## ##???????????????? | | ??????????????## #????????????????? | | ??????????????# # ##????????????????? | | ??????????????# # ## #????????????????? | | ??????????????# ##"%## ###??????????????? | | ??????????????# #"] <# ##?????????????? | | ??????????????## #"/%<# ###???????????? | | ???????????????# ##"<## ##??????????? | | ???????????????# ## #??????????? | | ??????????????## #??????????? | | ?????????????##;;;; ####??????##### | | ?????????????# ;; ######?## # | | ?????????????# ; R;;## ## | | ?????????????##; ; ### # | | ?????????????#; ;;#?## # # | | ?????????????#;; @ #???## # # | | ?????????????### ;#????# # | | ???????????????# ##????## # | | ?????????####?## ##?????# ## # | | ?????????#&%### ##????#% ##### ## | | ?????????#%&[ # "##???# #??## ##### | | ?????????##]* *% """#?### %"#???# ##? " | | ?????????#% "%#< #"""### %! ##??# %## | | ?????????#[%## " #""### =%##### &# | | ?????????###### "### *!! #" &%= | | ??????????????##" ##?## "" & | | ???????????????# "#??####"% % | | ???????????????#" ##?????##% ### ### | | ???????????????#" ######## #### ##?? | | ??????????????## # "# # #??" " | | ??????????????# * < #???### | | ??????????????# ### ##????? | | ??????????????# # ####### ###?##" ###### | | ??????????????#####?????###????##" # # | | ????????????????????????????????### | | ??????????????????????????????????# # | | ??????????????????????????????????# #### | | ??????????????????????????????????#####??? | | ?????????????????????????????????????????? | | ?????????????????????????????????????????? | +----------------------------------------------------+ Best States ------------- Heat Dissipation 25 Energy Generation 10 Energy Capacity 250 Matter Stores 300 Matter Capacity 300 Sight Range 16 Terrain Scan Density 10 Armor Coverage 150 Resistance: KI 20 Evasion (%) 42 Item Schematics ----------------- None Robot Schematics ------------------ None Fabricated ------------ Nothing Repaired ---------- Nothing Studied --------- None Alien Tech Used ----------------- None Achievements -------------- None Challenges ------------ None Game ------ Seed ArcGatlingShell Manual? 0 Play Time 00:16:32 Cumulative 187.8 hours Start 2026.04.09 @ 18:18:33 End 2026.04.09 @ 18:31:00 Sessions 1 Manual Loads 0 Difficulty Rogue Special Mode None Game No. 315 Rogue 315 Adventurer 0 Explorer 0 Win Type - Total 1 Types 1/0/0/0/0/0/0/0/0/0 Lore% 58 Gallery% 59 Achievement% 45 Wizard Run 0 Options --------- Layout 2 ASCII 0 Keyboard 1 Movement Numpad Keybinds 0 Fullscreen 1 Font 20/SmallcapsGlow Map View 64x51 Zoom Use 0% Tactical HUD 1 Map Filters NONE Filters NONE Steam 1 RUN: 23690d27-b58a-45fa-86be-2f4e45c96331